[Event "Titled Tuesday Blitz April 18 Early 2023"]
[White "Andreev, Konstantin"]
[Black "Mendez Fortes, Eduardo Jesus"]
[WhiteFideId "24239305"]
[BlackFideId "3502376"]
[WhiteElo "2106"]
[BlackElo "2307"]
[Result "1-0"]
[Round "10"]
[TimeControl "180+2"]
[Date "2023.04.18"]
[WhiteClock "0:01:16"]
[BlackClock "0:00:21"]

1. e4 {[%clk 0:03:00]}  c5 {[%clk 0:02:59]} 2. Nf3 {[%clk 0:03:00]}  d6 {[%clk 0:03:00]} 3. d4 {[%clk 0:03:01]}  cxd4 {[%clk 0:03:01]} 4. Nxd4 {[%clk 0:03:01]}  Nf6 {[%clk 0:03:01]} 5. Nc3 {[%clk 0:03:02]}  a6 {[%clk 0:03:01]} 6. h4 {[%clk 0:03:02]}  h5 {[%clk 0:02:57]} 7. Bg5 {[%clk 0:02:57]}  e6 {[%clk 0:02:56]} 8. Qd2 {[%clk 0:02:56]}  Be7 {[%clk 0:02:56]} 9. O-O-O {[%clk 0:02:56]}  Qc7 {[%clk 0:02:53]} 10. f3 {[%clk 0:02:56]}  Bd7 {[%clk 0:02:53]} 11. Kb1 {[%clk 0:02:57]}  b5 {[%clk 0:02:53]} 12. Be2 {[%clk 0:02:57]}  Qb7 {[%clk 0:02:48]} 13. Bd3 {[%clk 0:02:53]}  Nc6 {[%clk 0:02:48]} 14. Nxc6 {[%clk 0:02:53]}  Bxc6 {[%clk 0:02:49]} 15. Rhg1 {[%clk 0:02:52]}  O-O-O {[%clk 0:02:48]} 16. Ne2 {[%clk 0:02:52]}  Kb8 {[%clk 0:02:41]} 17. Nd4 {[%clk 0:02:49]}  Be8 {[%clk 0:02:35]} 18. Nb3 {[%clk 0:02:35]}  Qc7 {[%clk 0:02:10]} 19. Qf2 {[%clk 0:02:25]}  Ng8 {[%clk 0:01:49]} 20. Be3 {[%clk 0:02:24]}  Kb7 {[%clk 0:01:42]} 21. Bd2 {[%clk 0:02:16]}  Rc8 {[%clk 0:01:29]} 22. Ba5 {[%clk 0:02:10]}  Qc6 {[%clk 0:01:26]} 23. Bc3 {[%clk 0:02:04]}  Nf6 {[%clk 0:01:20]} 24. e5 {[%clk 0:02:03]}  dxe5 {[%clk 0:01:16]} 25. Na5+ {[%clk 0:02:03]}  Ka8 {[%clk 0:01:12]} 26. Nxc6 {[%clk 0:02:02]}  Bxc6 {[%clk 0:01:13]} 27. Bxe5 {[%clk 0:01:56]}  Nd5 {[%clk 0:01:10]} 28. Be4 {[%clk 0:01:53]}  f6 {[%clk 0:01:10]} 29. Bxd5 {[%clk 0:01:52]}  Bxd5 {[%clk 0:01:10]} 30. Bd4 {[%clk 0:01:52]}  Rhd8 {[%clk 0:01:08]} 31. Rge1 {[%clk 0:01:49]}  Rd7 {[%clk 0:01:06]} 32. b3 {[%clk 0:01:44]}  Bf8 {[%clk 0:01:04]} 33. Kb2 {[%clk 0:01:42]}  a5 {[%clk 0:01:04]} 34. Rd2 {[%clk 0:01:40]}  a4 {[%clk 0:01:00]} 35. Qe2 {[%clk 0:01:36]}  Rb7 {[%clk 0:00:55]} 36. Qd3 {[%clk 0:01:30]}  Bb4 {[%clk 0:00:53]} 37. c3 {[%clk 0:01:29]}  Bd6 {[%clk 0:00:53]} 38. Rde2 {[%clk 0:01:29]}  Bg3 {[%clk 0:00:49]} 39. Bf2 {[%clk 0:01:27]}  Bf4 {[%clk 0:00:39]} 40. Rxe6 {[%clk 0:01:24]}  Bxe6 {[%clk 0:00:33]} 41. Rxe6 {[%clk 0:01:25]}  b4 {[%clk 0:00:31]} 42. Qa6+ {[%clk 0:01:18]}  Kb8 {[%clk 0:00:31]} 43. Ba7+ {[%clk 0:01:17]}  Kc7 {[%clk 0:00:20]} 44. Rc6+ {[%clk 0:01:16]}  Kd7 {[%clk 0:00:21]} 45. Qxb7+ {[%clk 0:01:16]} 1-0


[Site "https://www.chess.com"]

[Event "Titled Tuesday Blitz April 18 Early 2023"]
[White "Indjic, Aleksandar"]
[Black "Sreyas Payyappat"]
[WhiteFideId "911925"]
[BlackFideId "46674969"]
[WhiteElo "2614"]
[BlackElo "2083"]
[Result "1-0"]
[Round "10"]
[TimeControl "180+2"]
[Date "2023.04.18"]
[WhiteClock "0:01:13"]
[BlackClock "0:00:04"]

1. a4 {[%clk 0:02:56]}  e5 {[%clk 0:02:58]} 2. g3 {[%clk 0:02:52]}  d5 {[%clk 0:02:58]} 3. Bg2 {[%clk 0:02:53]}  Nf6 {[%clk 0:02:58]} 4. d3 {[%clk 0:02:53]}  Bc5 {[%clk 0:02:53]} 5. e3 {[%clk 0:02:52]}  Nc6 {[%clk 0:02:52]} 6. h3 {[%clk 0:02:51]}  O-O {[%clk 0:02:50]} 7. Ne2 {[%clk 0:02:52]}  Bf5 {[%clk 0:02:43]} 8. Nd2 {[%clk 0:02:51]}  Qd7 {[%clk 0:02:40]} 9. g4 {[%clk 0:02:50]}  Be6 {[%clk 0:02:33]} 10. Ng3 {[%clk 0:02:50]}  h6 {[%clk 0:02:23]} 11. c3 {[%clk 0:02:50]}  Rad8 {[%clk 0:02:21]} 12. b4 {[%clk 0:02:47]}  Bd6 {[%clk 0:02:15]} 13. b5 {[%clk 0:02:11]}  Ne7 {[%clk 0:02:07]} 14. Ba3 {[%clk 0:02:11]}  d4 {[%clk 0:02:04]} 15. Bxd6 {[%clk 0:02:06]}  dxc3 {[%clk 0:02:01]} 16. Bxe5 {[%clk 0:02:00]}  cxd2+ {[%clk 0:02:02]} 17. Qxd2 {[%clk 0:02:01]}  Qxd3 {[%clk 0:01:53]} 18. Qxd3 {[%clk 0:01:56]}  Rxd3 {[%clk 0:01:53]} 19. Bxb7 {[%clk 0:01:47]}  Rfd8 {[%clk 0:01:38]} 20. O-O {[%clk 0:01:46]}  Nfd5 {[%clk 0:01:31]} 21. Rfc1 {[%clk 0:01:39]}  Rd7 {[%clk 0:01:18]} 22. Bd4 {[%clk 0:01:35]}  c5 {[%clk 0:01:01]} 23. bxc6 {[%clk 0:01:34]}  Rd8 {[%clk 0:00:48]} 24. Ne4 {[%clk 0:01:30]}  Nc7 {[%clk 0:00:38]} 25. Bxa7 {[%clk 0:01:20]}  Bd5 {[%clk 0:00:22]} 26. Nc5 {[%clk 0:01:20]}  Rd2 {[%clk 0:00:19]} 27. Bb6 {[%clk 0:01:19]}  Ng6 {[%clk 0:00:05]} 28. Bxc7 {[%clk 0:01:14]}  Re8 {[%clk 0:00:04]} 29. e4 {[%clk 0:01:13]} 1-0


[Site "https://www.chess.com"]

[Event "Titled Tuesday Blitz April 18 Early 2023"]
[White "Aydincelebi, Kagan"]
[Black "Fiorito, Francisco"]
[WhiteFideId "6361102"]
[BlackFideId "180165"]
[WhiteElo "2180"]
[BlackElo "2341"]
[Result "1/2-1/2"]
[Round "10"]
[TimeControl "180+2"]
[Date "2023.04.18"]
[WhiteClock "0:00:08"]
[BlackClock "0:00:07"]

1. e4 {[%clk 0:03:00]}  c5 {[%clk 0:02:59]} 2. Nf3 {[%clk 0:03:00]}  Nc6 {[%clk 0:02:59]} 3. Bb5 {[%clk 0:03:00]}  g6 {[%clk 0:02:59]} 4. Bxc6 {[%clk 0:03:00]}  dxc6 {[%clk 0:03:00]} 5. Nc3 {[%clk 0:03:00]}  Bg7 {[%clk 0:02:59]} 6. d3 {[%clk 0:03:00]}  Qc7 {[%clk 0:02:58]} 7. Be3 {[%clk 0:03:01]}  b6 {[%clk 0:02:58]} 8. h3 {[%clk 0:02:57]}  e5 {[%clk 0:02:57]} 9. O-O {[%clk 0:02:58]}  h6 {[%clk 0:02:55]} 10. Nd2 {[%clk 0:02:52]}  g5 {[%clk 0:02:52]} 11. Ne2 {[%clk 0:02:50]}  Ne7 {[%clk 0:02:52]} 12. Ng3 {[%clk 0:02:50]}  O-O {[%clk 0:02:50]} 13. Nc4 {[%clk 0:02:47]}  Be6 {[%clk 0:02:46]} 14. b3 {[%clk 0:02:47]}  f6 {[%clk 0:02:44]} 15. a4 {[%clk 0:02:43]}  a5 {[%clk 0:02:43]} 16. Bd2 {[%clk 0:02:39]}  Rab8 {[%clk 0:02:38]} 17. Bc3 {[%clk 0:02:39]}  Ng6 {[%clk 0:02:34]} 18. Nf5 {[%clk 0:02:37]}  Qd7 {[%clk 0:02:11]} 19. Nce3 {[%clk 0:02:34]}  Kh7 {[%clk 0:01:54]} 20. g3 {[%clk 0:02:27]}  Ne7 {[%clk 0:01:47]} 21. Qf3 {[%clk 0:02:16]}  Nxf5 {[%clk 0:01:46]} 22. Nxf5 {[%clk 0:02:17]}  Bxf5 {[%clk 0:01:44]} 23. Qxf5+ {[%clk 0:02:15]}  Qxf5 {[%clk 0:01:44]} 24. exf5 {[%clk 0:02:16]}  Rfd8 {[%clk 0:01:45]} 25. Rfe1 {[%clk 0:02:17]}  Kg8 {[%clk 0:01:43]} 26. Re4 {[%clk 0:02:17]}  Kf7 {[%clk 0:01:43]} 27. Kg2 {[%clk 0:02:18]}  Bf8 {[%clk 0:01:43]} 28. Kf3 {[%clk 0:02:18]}  Bd6 {[%clk 0:01:43]} 29. Kg4 {[%clk 0:02:18]}  Re8 {[%clk 0:01:32]} 30. Kh5 {[%clk 0:02:17]}  Kg7 {[%clk 0:01:32]} 31. Rae1 {[%clk 0:02:16]}  Rf8 {[%clk 0:01:33]} 32. Bd2 {[%clk 0:02:10]}  Rb7 {[%clk 0:01:31]} 33. f4 {[%clk 0:02:07]}  Kf7 {[%clk 0:01:23]} 34. fxg5 {[%clk 0:01:45]}  hxg5 {[%clk 0:01:22]} 35. Kg4 {[%clk 0:01:45]}  Rh8 {[%clk 0:01:19]} 36. Rh1 {[%clk 0:01:46]}  Rbb8 {[%clk 0:01:18]} 37. Re2 {[%clk 0:01:46]}  Rbg8 {[%clk 0:01:18]} 38. Reh2 {[%clk 0:01:44]}  Bc7 {[%clk 0:01:18]} 39. Kf3 {[%clk 0:01:44]}  Rh5 {[%clk 0:01:17]} 40. Ke4 {[%clk 0:01:41]}  Ke7 {[%clk 0:01:14]} 41. g4 {[%clk 0:01:38]}  Rh7 {[%clk 0:01:13]} 42. h4 {[%clk 0:01:38]}  gxh4 {[%clk 0:01:13]} 43. Rxh4 {[%clk 0:01:39]}  Rxg4+ {[%clk 0:01:11]} 44. Rxg4 {[%clk 0:01:39]}  Rxh1 {[%clk 0:01:12]} 45. Rg7+ {[%clk 0:01:40]}  Kd6 {[%clk 0:01:09]} 46. Rg6 {[%clk 0:01:31]}  Bd8 {[%clk 0:00:54]} 47. Bg5 {[%clk 0:01:30]}  Rg1 {[%clk 0:00:55]} 48. Bxf6 {[%clk 0:00:57]}  Re1+ {[%clk 0:00:54]} 49. Kf3 {[%clk 0:00:54]}  Bxf6 {[%clk 0:00:52]} 50. Rxf6+ {[%clk 0:00:55]}  Kd5 {[%clk 0:00:49]} 51. Rf7 {[%clk 0:00:53]}  Kd4 {[%clk 0:00:44]} 52. Kf2 {[%clk 0:00:45]}  Rc1 {[%clk 0:00:35]} 53. Rd7+ {[%clk 0:00:45]}  Kc3 {[%clk 0:00:35]} 54. f6 {[%clk 0:00:46]}  Rxc2+ {[%clk 0:00:36]} 55. Kg3 {[%clk 0:00:43]}  Rc1 {[%clk 0:00:35]} 56. Kg2 {[%clk 0:00:43]}  Rc2+ {[%clk 0:00:36]} 57. Kf1 {[%clk 0:00:32]}  Rc1+ {[%clk 0:00:34]} 58. Ke2 {[%clk 0:00:32]}  Rc2+ {[%clk 0:00:34]} 59. Ke3 {[%clk 0:00:30]}  Rc1 {[%clk 0:00:35]} 60. Ke2 {[%clk 0:00:17]}  Rh1 {[%clk 0:00:23]} 61. f7 {[%clk 0:00:18]}  Rh8 {[%clk 0:00:23]} 62. Rb7 {[%clk 0:00:18]}  Kxb3 {[%clk 0:00:19]} 63. Rxb6+ {[%clk 0:00:18]}  Kxa4 {[%clk 0:00:20]} 64. Rxc6 {[%clk 0:00:19]}  Rf8 {[%clk 0:00:14]} 65. Rxc5 {[%clk 0:00:15]}  Rxf7 {[%clk 0:00:13]} 66. Rxe5 {[%clk 0:00:15]}  Kb4 {[%clk 0:00:14]} 67. Re8 {[%clk 0:00:12]}  a4 {[%clk 0:00:11]} 68. Kd2 {[%clk 0:00:13]}  Rc7 {[%clk 0:00:11]} 69. Rb8+ {[%clk 0:00:12]}  Ka3 {[%clk 0:00:09]} 70. d4 {[%clk 0:00:13]}  Ka2 {[%clk 0:00:10]} 71. d5 {[%clk 0:00:14]}  a3 {[%clk 0:00:11]} 72. d6 {[%clk 0:00:14]}  Rc6 {[%clk 0:00:09]} 73. Rd8 {[%clk 0:00:10]}  Ka1 {[%clk 0:00:09]} 74. d7 {[%clk 0:00:09]}  a2 {[%clk 0:00:10]} 75. Ke2 {[%clk 0:00:08]}  Rd6 {[%clk 0:00:08]} 76. Ke3 {[%clk 0:00:09]}  Kb1 {[%clk 0:00:07]} 77. Rb8+ {[%clk 0:00:09]}  Kc2 {[%clk 0:00:08]} 78. Rc8+ {[%clk 0:00:07]}  Kb3 {[%clk 0:00:07]} 79. Rb8+ {[%clk 0:00:07]}  Kc4 {[%clk 0:00:07]} 80. Rc8+ {[%clk 0:00:08]}  Kb4 {[%clk 0:00:06]} 81. Rb8+ {[%clk 0:00:06]}  Kc3 {[%clk 0:00:07]} 82. Rc8+ {[%clk 0:00:06]}  Kb2 {[%clk 0:00:07]} 83. Rb8+ {[%clk 0:00:06]}  Ka1 {[%clk 0:00:07]} 84. Ke2 {[%clk 0:00:07]}  Rxd7 {[%clk 0:00:06]} 85. Ke3 {[%clk 0:00:07]}  Rd8 {[%clk 0:00:05]} 86. Rxd8 {[%clk 0:00:07]}  Kb2 {[%clk 0:00:06]} 87. Ra8 {[%clk 0:00:07]}  a1=Q {[%clk 0:00:06]} 88. Rxa1 {[%clk 0:00:08]}  Kxa1 {[%clk 0:00:07]} 1/2-1/2


[Site "https://www.chess.com"]

[Event "Titled Tuesday Blitz April 18 Early 2023"]
[White "Rodchenkov, Sergey D."]
[Black "Aaditya Dhingra"]
[WhiteFideId "4168712"]
[BlackFideId "25678191"]
[WhiteElo "2277"]
[BlackElo "2083"]
[Result "0-1"]
[Round "10"]
[TimeControl "180+2"]
[Date "2023.04.18"]
[WhiteClock "0:00:01"]
[BlackClock "0:00:11"]

1. e4 {[%clk 0:02:55]}  g6 {[%clk 0:02:58]} 2. d4 {[%clk 0:02:55]}  Bg7 {[%clk 0:02:58]} 3. Nf3 {[%clk 0:02:53]}  d5 {[%clk 0:02:57]} 4. exd5 {[%clk 0:02:48]}  Qxd5 {[%clk 0:02:56]} 5. Nc3 {[%clk 0:02:48]}  Qd8 {[%clk 0:02:56]} 6. Bc4 {[%clk 0:02:48]}  Nf6 {[%clk 0:02:56]} 7. Bg5 {[%clk 0:02:42]}  O-O {[%clk 0:02:55]} 8. Qd2 {[%clk 0:02:42]}  Bg4 {[%clk 0:02:53]} 9. O-O-O {[%clk 0:02:31]}  Bxf3 {[%clk 0:02:51]} 10. gxf3 {[%clk 0:02:32]}  Nbd7 {[%clk 0:02:47]} 11. Bh6 {[%clk 0:02:29]}  Nb6 {[%clk 0:02:47]} 12. Bb3 {[%clk 0:02:29]}  a5 {[%clk 0:02:46]} 13. a3 {[%clk 0:02:21]}  a4 {[%clk 0:02:44]} 14. Ba2 {[%clk 0:02:22]}  c6 {[%clk 0:02:44]} 15. h4 {[%clk 0:02:18]}  Nh5 {[%clk 0:02:41]} 16. Ne4 {[%clk 0:02:06]}  Nd5 {[%clk 0:02:34]} 17. Ng3 {[%clk 0:01:49]}  Ndf6 {[%clk 0:02:25]} 18. Rdg1 {[%clk 0:01:29]}  Qa5 {[%clk 0:02:20]} 19. c3 {[%clk 0:01:06]}  Kh8 {[%clk 0:01:58]} 20. Ne4 {[%clk 0:01:01]}  Qc7 {[%clk 0:01:44]} 21. Bxg7+ {[%clk 0:00:40]}  Kxg7 {[%clk 0:01:42]} 22. Kb1 {[%clk 0:00:36]}  Qf4 {[%clk 0:01:39]} 23. Qe2 {[%clk 0:00:35]}  Ra5 {[%clk 0:01:32]} 24. Rg5 {[%clk 0:00:31]}  Rf5 {[%clk 0:01:28]} 25. Rxf5 {[%clk 0:00:27]}  Qxf5 {[%clk 0:01:27]} 26. Ka1 {[%clk 0:00:25]}  Nf4 {[%clk 0:01:26]} 27. Qe3 {[%clk 0:00:24]}  N6d5 {[%clk 0:01:24]} 28. Qd2 {[%clk 0:00:24]}  Ne6 {[%clk 0:01:22]} 29. Qd1 {[%clk 0:00:22]}  h5 {[%clk 0:01:20]} 30. Rg1 {[%clk 0:00:22]}  b5 {[%clk 0:01:16]} 31. Bb1 {[%clk 0:00:21]}  Qf4 {[%clk 0:01:14]} 32. Ng5 {[%clk 0:00:21]}  Nxg5 {[%clk 0:01:13]} 33. Rxg5 {[%clk 0:00:22]}  e6 {[%clk 0:01:11]} 34. Qd3 {[%clk 0:00:22]}  f5 {[%clk 0:01:06]} 35. Qe2 {[%clk 0:00:17]}  Qxh4 {[%clk 0:01:05]} 36. Rg1 {[%clk 0:00:17]}  Qf6 {[%clk 0:01:03]} 37. Qd2 {[%clk 0:00:16]}  h4 {[%clk 0:01:03]} 38. f4 {[%clk 0:00:16]}  h3 {[%clk 0:01:01]} 39. Qe3 {[%clk 0:00:16]}  Rh8 {[%clk 0:01:00]} 40. Rh1 {[%clk 0:00:16]}  Kf7 {[%clk 0:00:59]} 41. Rxh3 {[%clk 0:00:14]}  Rxh3 {[%clk 0:00:59]} 42. Qxh3 {[%clk 0:00:15]}  Nxf4 {[%clk 0:00:59]} 43. Qh7+ {[%clk 0:00:14]}  Qg7 {[%clk 0:00:59]} 44. Qh2 {[%clk 0:00:13]}  g5 {[%clk 0:00:58]} 45. f3 {[%clk 0:00:13]}  Kg6 {[%clk 0:00:57]} 46. Qg3 {[%clk 0:00:10]}  Qh8 {[%clk 0:00:55]} 47. Qe1 {[%clk 0:00:10]}  Kf7 {[%clk 0:00:54]} 48. Qg3 {[%clk 0:00:08]}  Qh4 {[%clk 0:00:52]} 49. Qg1 {[%clk 0:00:08]}  g4 {[%clk 0:00:51]} 50. fxg4 {[%clk 0:00:06]}  Qxg4 {[%clk 0:00:52]} 51. Qh1 {[%clk 0:00:06]}  Nd5 {[%clk 0:00:45]} 52. Qh7+ {[%clk 0:00:05]}  Qg7 {[%clk 0:00:45]} 53. Qh4 {[%clk 0:00:05]}  Ke8 {[%clk 0:00:40]} 54. Qh2 {[%clk 0:00:04]}  Kd7 {[%clk 0:00:38]} 55. Qb8 {[%clk 0:00:04]}  Qg1 {[%clk 0:00:35]} 56. Qf8 {[%clk 0:00:01]}  f4 {[%clk 0:00:32]} 57. Qf7+ {[%clk 0:00:01]}  Kd6 {[%clk 0:00:30]} 58. Qf8+ {[%clk 0:00:01]}  Kc7 {[%clk 0:00:30]} 59. Qf7+ {[%clk 0:00:01]}  Kb6 {[%clk 0:00:29]} 60. Qf8 {[%clk 0:00:02]}  Kb7 {[%clk 0:00:13]} 61. Qf7+ {[%clk 0:00:02]}  Nc7 {[%clk 0:00:13]} 62. Qxf4 {[%clk 0:00:02]}  Qd1 {[%clk 0:00:13]} 63. Qe5 {[%clk 0:00:01]}  Qb3 {[%clk 0:00:11]} 64. Qe4 {[%clk 0:00:01]}  Kb6 {[%clk 0:00:11]} 0-1


[Site "https://www.chess.com"]

[Event "Titled Tuesday Blitz April 18 Early 2023"]
[White "Tregubov, Pavel V."]
[Black "Degenbaev, Aziz"]
[WhiteFideId "4115341"]
[BlackFideId "13802640"]
[WhiteElo "2425"]
[BlackElo "2152"]
[Result "1-0"]
[Round "10"]
[TimeControl "180+2"]
[Date "2023.04.18"]
[WhiteClock "0:00:22"]
[BlackClock "0:00:05"]

1. e4 {[%clk 0:03:00]}  c5 {[%clk 0:02:58]} 2. Nf3 {[%clk 0:03:00]}  d6 {[%clk 0:02:58]} 3. Bb5+ {[%clk 0:03:00]}  Nd7 {[%clk 0:02:57]} 4. Ba4 {[%clk 0:03:00]}  Nf6 {[%clk 0:02:45]} 5. O-O {[%clk 0:03:00]}  e6 {[%clk 0:02:45]} 6. Re1 {[%clk 0:02:59]}  a6 {[%clk 0:02:44]} 7. c3 {[%clk 0:02:59]}  b5 {[%clk 0:02:39]} 8. Bc2 {[%clk 0:02:58]}  c4 {[%clk 0:02:40]} 9. a4 {[%clk 0:02:46]}  Bb7 {[%clk 0:02:30]} 10. b3 {[%clk 0:02:45]}  Be7 {[%clk 0:02:22]} 11. bxc4 {[%clk 0:02:30]}  bxc4 {[%clk 0:02:23]} 12. Na3 {[%clk 0:02:30]}  Rc8 {[%clk 0:02:13]} 13. Rb1 {[%clk 0:02:30]}  Ba8 {[%clk 0:02:08]} 14. Qe2 {[%clk 0:02:22]}  Qc7 {[%clk 0:02:06]} 15. d4 {[%clk 0:02:12]}  cxd3 {[%clk 0:01:47]} 16. Bxd3 {[%clk 0:02:12]}  Nc5 {[%clk 0:01:44]} 17. Bxa6 {[%clk 0:02:12]}  Nxa6 {[%clk 0:01:42]} 18. Qxa6 {[%clk 0:02:13]}  Bxe4 {[%clk 0:01:41]} 19. Nb5 {[%clk 0:02:12]}  Qc6 {[%clk 0:01:32]} 20. Qxc6+ {[%clk 0:02:02]}  Rxc6 {[%clk 0:01:30]} 21. Nfd4 {[%clk 0:01:57]}  Rc8 {[%clk 0:01:23]} 22. Ra1 {[%clk 0:01:52]}  Bb7 {[%clk 0:01:09]} 23. a5 {[%clk 0:01:47]}  Ba6 {[%clk 0:01:08]} 24. Na7 {[%clk 0:01:45]}  Ra8 {[%clk 0:01:06]} 25. Nac6 {[%clk 0:01:38]}  Nd5 {[%clk 0:00:58]} 26. Ba3 {[%clk 0:01:34]}  g6 {[%clk 0:00:52]} 27. Rec1 {[%clk 0:01:03]}  e5 {[%clk 0:00:41]} 28. c4 {[%clk 0:00:55]}  Nf4 {[%clk 0:00:38]} 29. g3 {[%clk 0:00:55]}  Nd3 {[%clk 0:00:21]} 30. Rc3 {[%clk 0:00:51]}  Nxf2 {[%clk 0:00:20]} 31. Nb5 {[%clk 0:00:38]}  Bxb5 {[%clk 0:00:18]} 32. cxb5 {[%clk 0:00:38]}  Ne4 {[%clk 0:00:18]} 33. Rd3 {[%clk 0:00:31]}  Nc5 {[%clk 0:00:10]} 34. Bxc5 {[%clk 0:00:31]}  dxc5 {[%clk 0:00:10]} 35. b6 {[%clk 0:00:22]}  c4 {[%clk 0:00:05]} 36. Rd5 {[%clk 0:00:22]} 1-0


[Site "https://www.chess.com"]

[Event "Titled Tuesday Blitz April 18 Early 2023"]
[White "Kucuksari, Kaan"]
[Black "Chernomordik, Pavel"]
[WhiteFideId "6380166"]
[BlackFideId "2804530"]
[WhiteElo "2364"]
[BlackElo "2193"]
[Result "1-0"]
[Round "10"]
[TimeControl "180+2"]
[Date "2023.04.18"]
[WhiteClock "0:00:16"]
[BlackClock "0:00:09"]

1. e4 {[%clk 0:03:00]}  g6 {[%clk 0:03:00]} 2. d4 {[%clk 0:02:59]}  Bg7 {[%clk 0:03:01]} 3. Nf3 {[%clk 0:03:00]}  d6 {[%clk 0:03:00]} 4. Be2 {[%clk 0:02:59]}  b6 {[%clk 0:02:49]} 5. O-O {[%clk 0:02:59]}  Bb7 {[%clk 0:02:49]} 6. Nc3 {[%clk 0:02:59]}  e6 {[%clk 0:02:47]} 7. Re1 {[%clk 0:02:51]}  Nd7 {[%clk 0:02:47]} 8. a4 {[%clk 0:02:50]}  a6 {[%clk 0:02:45]} 9. e5 {[%clk 0:02:43]}  Ne7 {[%clk 0:02:36]} 10. Bf1 {[%clk 0:02:28]}  h6 {[%clk 0:02:31]} 11. Bf4 {[%clk 0:02:26]}  d5 {[%clk 0:02:30]} 12. h4 {[%clk 0:02:23]}  c5 {[%clk 0:02:29]} 13. Ne2 {[%clk 0:02:21]}  cxd4 {[%clk 0:02:24]} 14. Nexd4 {[%clk 0:02:21]}  Nc6 {[%clk 0:02:22]} 15. Bd3 {[%clk 0:02:17]}  Nxd4 {[%clk 0:02:17]} 16. Nxd4 {[%clk 0:02:17]}  Qxh4 {[%clk 0:02:16]} 17. Bxg6 {[%clk 0:02:12]}  Qxf4 {[%clk 0:01:55]} 18. Nxe6 {[%clk 0:02:12]}  Qc4 {[%clk 0:01:41]} 19. Nxg7+ {[%clk 0:02:06]}  Kf8 {[%clk 0:01:41]} 20. e6 {[%clk 0:01:49]}  Kxg7 {[%clk 0:01:36]} 21. Bd3 {[%clk 0:01:44]}  Qf4 {[%clk 0:01:30]} 22. exd7 {[%clk 0:01:37]}  Rad8 {[%clk 0:01:28]} 23. Re3 {[%clk 0:01:12]}  Rxd7 {[%clk 0:01:24]} 24. Qh5 {[%clk 0:01:11]}  d4 {[%clk 0:01:15]} 25. Rg3+ {[%clk 0:01:12]}  Kf8 {[%clk 0:01:14]} 26. Re1 {[%clk 0:01:12]}  Rg8 {[%clk 0:01:02]} 27. Re8+ {[%clk 0:00:54]}  Kxe8 {[%clk 0:01:01]} 28. Rxg8+ {[%clk 0:00:55]}  Ke7 {[%clk 0:01:00]} 29. Qe2+ {[%clk 0:00:37]}  Kd6 {[%clk 0:00:55]} 30. Re8 {[%clk 0:00:34]}  Qf6 {[%clk 0:00:43]} 31. Bxa6 {[%clk 0:00:28]}  Bc6 {[%clk 0:00:33]} 32. Bb5 {[%clk 0:00:26]}  Rc7 {[%clk 0:00:22]} 33. c3 {[%clk 0:00:20]}  dxc3 {[%clk 0:00:15]} 34. Qd3+ {[%clk 0:00:15]}  Bd5 {[%clk 0:00:14]} 35. Qg3+ {[%clk 0:00:15]}  Kc5 {[%clk 0:00:11]} 36. Qxc7+ {[%clk 0:00:15]}  Kb4 {[%clk 0:00:11]} 37. Qxc3+ {[%clk 0:00:15]}  Qxc3 {[%clk 0:00:10]} 38. bxc3+ {[%clk 0:00:16]}  Kxc3 {[%clk 0:00:10]} 39. Re3+ {[%clk 0:00:16]}  Kd4 {[%clk 0:00:09]} 40. Rd3+ {[%clk 0:00:16]} 1-0


[Site "https://www.chess.com"]

[Event "Titled Tuesday Blitz April 18 Early 2023"]
[White "Kozin, Yuri"]
[Black "Rios Escobar, Adan"]
[WhiteFideId "4129920"]
[BlackFideId "3403645"]
[WhiteElo "2627"]
[BlackElo "2480"]
[Result "0-1"]
[Round "10"]
[TimeControl "180+2"]
[Date "2023.04.18"]
[WhiteClock "0:00:49"]
[BlackClock "0:01:11"]

1. e4 {[%clk 0:02:56]}  c5 {[%clk 0:02:55]} 2. Nf3 {[%clk 0:02:56]}  d6 {[%clk 0:02:55]} 3. d4 {[%clk 0:02:56]}  cxd4 {[%clk 0:02:56]} 4. Nxd4 {[%clk 0:02:57]}  Nf6 {[%clk 0:02:56]} 5. Nc3 {[%clk 0:02:57]}  a6 {[%clk 0:02:57]} 6. Be3 {[%clk 0:02:58]}  e5 {[%clk 0:02:56]} 7. Nf3 {[%clk 0:02:58]}  Be7 {[%clk 0:02:55]} 8. Bc4 {[%clk 0:02:59]}  Be6 {[%clk 0:02:52]} 9. Bxe6 {[%clk 0:02:59]}  fxe6 {[%clk 0:02:51]} 10. O-O {[%clk 0:03:00]}  Nc6 {[%clk 0:02:37]} 11. h3 {[%clk 0:02:56]}  O-O {[%clk 0:02:33]} 12. Qd3 {[%clk 0:02:46]}  d5 {[%clk 0:02:27]} 13. exd5 {[%clk 0:02:40]}  exd5 {[%clk 0:02:28]} 14. Rad1 {[%clk 0:01:57]}  e4 {[%clk 0:02:24]} 15. Nxe4 {[%clk 0:01:57]}  Nxe4 {[%clk 0:02:24]} 16. Qb3 {[%clk 0:01:56]}  Na5 {[%clk 0:01:53]} 17. Qxd5+ {[%clk 0:01:33]}  Qxd5 {[%clk 0:01:52]} 18. Rxd5 {[%clk 0:01:34]}  Nc4 {[%clk 0:01:49]} 19. Rd4 {[%clk 0:01:25]}  Nxe3 {[%clk 0:01:45]} 20. Rxe4 {[%clk 0:01:24]}  Nxf1 {[%clk 0:01:44]} 21. Rxe7 {[%clk 0:01:24]}  Rxf3 {[%clk 0:01:24]} 22. gxf3 {[%clk 0:01:20]}  Nd2 {[%clk 0:01:25]} 23. Kg2 {[%clk 0:01:13]}  b5 {[%clk 0:01:24]} 24. b3 {[%clk 0:01:11]}  Rc8 {[%clk 0:01:21]} 25. Ra7 {[%clk 0:00:56]}  Rc6 {[%clk 0:01:12]} 26. a4 {[%clk 0:00:49]}  Rg6+ {[%clk 0:01:11]} 0-1


[Site "https://www.chess.com"]

[Event "Titled Tuesday Blitz April 18 Early 2023"]
[White "Berezin, Viktor"]
[Black "Bettalli, Francesco"]
[WhiteFideId "14107872"]
[BlackFideId "2816453"]
[WhiteElo "2310"]
[BlackElo "2216"]
[Result "1-0"]
[Round "10"]
[TimeControl "180+2"]
[Date "2023.04.18"]
[WhiteClock "0:01:20"]
[BlackClock "0:01:48"]

1. d4 {[%clk 0:03:00]}  g6 {[%clk 0:02:54]} 2. Nf3 {[%clk 0:03:00]}  Bg7 {[%clk 0:02:55]} 3. g3 {[%clk 0:03:01]}  c5 {[%clk 0:02:54]} 4. d5 {[%clk 0:03:01]}  Nf6 {[%clk 0:02:53]} 5. Bg2 {[%clk 0:03:01]}  O-O {[%clk 0:02:54]} 6. O-O {[%clk 0:03:01]}  b5 {[%clk 0:02:54]} 7. a4 {[%clk 0:03:01]}  b4 {[%clk 0:02:54]} 8. Nfd2 {[%clk 0:02:59]}  Bb7 {[%clk 0:02:54]} 9. Nc4 {[%clk 0:02:58]}  d6 {[%clk 0:02:54]} 10. e4 {[%clk 0:02:58]}  Nbd7 {[%clk 0:02:51]} 11. Nbd2 {[%clk 0:02:58]}  a5 {[%clk 0:02:49]} 12. Re1 {[%clk 0:02:58]}  Ne8 {[%clk 0:02:49]} 13. Nb3 {[%clk 0:02:53]}  Nb6 {[%clk 0:02:44]} 14. Ncxa5 {[%clk 0:02:50]}  Ba6 {[%clk 0:02:37]} 15. Nc6 {[%clk 0:02:49]}  Qc7 {[%clk 0:02:37]} 16. Ra2 {[%clk 0:02:31]}  Bc4 {[%clk 0:02:29]} 17. a5 {[%clk 0:02:17]}  Nc8 {[%clk 0:02:24]} 18. Bf1 {[%clk 0:02:18]}  Bxf1 {[%clk 0:02:22]} 19. Kxf1 {[%clk 0:02:17]}  Na7 {[%clk 0:02:22]} 20. Nxa7 {[%clk 0:02:15]}  Rxa7 {[%clk 0:02:22]} 21. Kg2 {[%clk 0:02:06]}  c4 {[%clk 0:02:19]} 22. Nd4 {[%clk 0:02:06]}  Rxa5 {[%clk 0:02:18]} 23. Rxa5 {[%clk 0:02:05]}  Qxa5 {[%clk 0:02:19]} 24. Nc6 {[%clk 0:02:06]}  Qc7 {[%clk 0:02:16]} 25. Nxb4 {[%clk 0:02:05]}  Nf6 {[%clk 0:02:13]} 26. c3 {[%clk 0:02:04]}  Nd7 {[%clk 0:02:09]} 27. Nc6 {[%clk 0:02:00]}  Nc5 {[%clk 0:02:09]} 28. Bg5 {[%clk 0:01:57]}  Re8 {[%clk 0:02:07]} 29. Re2 {[%clk 0:01:51]}  e6 {[%clk 0:02:05]} 30. Nd4 {[%clk 0:01:40]}  exd5 {[%clk 0:01:56]} 31. exd5 {[%clk 0:01:39]}  Rxe2 {[%clk 0:01:54]} 32. Qxe2 {[%clk 0:01:37]}  h6 {[%clk 0:01:54]} 33. Qe8+ {[%clk 0:01:31]}  Kh7 {[%clk 0:01:53]} 34. Be3 {[%clk 0:01:31]}  Nd3 {[%clk 0:01:51]} 35. Nc6 {[%clk 0:01:23]}  Nxb2 {[%clk 0:01:48]} 36. Ne7 {[%clk 0:01:20]} 1-0


[Site "https://www.chess.com"]